[Event "EYCC Girls-U16 2019"]
[Site "Bratislava"]
[Date "2019.08.10"]
[Round "9.6"]
[White "Bulatova, Kamaliya"]
[Black "Zarebska, Lena"]
[Result "1-0"]
[ECO "E70"]
[WhiteElo "2157"]
[BlackElo "1773"]
[Annotator "NA"]
[PlyCount "163"]
[EventDate "2019.08.02"]
[EventType "swiss"]
[EventCountry "SVK"]
[SourceTitle "playchess.com"]
[Source "ChessBase"]
[SourceQuality "1"]
[TimeControl "40/5400+30:1800+30"]

1. d4 {[%emt 0:00:00]} Nf6 {[%emt 0:00:00]} 2. c4 {[%emt 0:00:00]} g6 {[%emt 0:00:17]} 3. Nc3 {[%emt 0:00:00]} Bg7 {[%emt 0:00:10]} 4. e4 {[%emt 0:00:00]} O-O {[%emt 0:00:30]} 5. h3 {[%emt 0:00:50]} d6 {[%emt 0:00:16]} 6. Nf3 {[%emt 0:00:04]} Re8 {[%emt 0:03:15]} 7. Be3 {[%emt 0:03:02]} c5 {[%emt 0:01:59]} 8. dxc5 {[%emt 0:07:30]} Qa5 {[%emt 0:00:45]} 9. Nd2 {[%emt 0:00:17]} Nfd7 {[%emt 0:05:17]} 10. cxd6 {[%emt 0:03:43]} Bxc3 {[%emt 0:06:03]} 11. bxc3 {[%emt 0:00:10]} exd6 {[%emt 0:00:14]} 12. Qc2 {[%emt 0:04:36]} Nc5 {[%emt 0:04:46]} 13. Be2 {[%emt 0:06:00]} Bd7 {[%emt 0:03:22]} 14. O-O {[%emt 0:02:41]} Bc6 {[%emt 0:05:42]} 15. Bf3 {[%emt 0:05:12]} Nbd7 {[%emt 0:00:44]} 16. Nb3 {[%emt 0:02:18]} Qc7 {[%emt 0:01:38]} 17. Nxc5 {[%emt 0:07:10]} Nxc5 {[%emt 0:05:29]} 18. Bxc5 {[%emt 0:00:37]} dxc5 {[%emt 0:00:05]} 19. Rfe1 {[%emt 0:01:00]} Re5 {[%emt 0:04:17]} 20. Re3 {[%emt 0:04:41]} Rae8 {[%emt 0:00:38]} 21. Rae1 {[%emt 0:00:24]} Qe7 {[%emt 0:00:57]} 22. Qe2 {[%emt 0:12:21]} b6 {[%emt 0:05:26]} 23. g4 {[%emt 0:07:55]} g5 {[%emt 0:06:13]} 24. Bg2 {[%emt 0:00:45]} Bb7 {[%emt 0:09:21]} 25. Rd1 {[%emt 0:05:50]} Re6 {[%emt 0:10:18]} 26. Qd2 {[%emt 0:03:34]} Bc6 {[%emt 0:01:13]} 27. f3 {[%emt 0:03:13]} Ba4 {[%emt 0:00:42]} 28. Rde1 {[%emt 0:00:38]} Rd8 {[%emt 0:00:45]} 29. Qf2 {[%emt 0:02:08]} Qd6 {[%emt 0:05:03]} 30. e5 {[%emt 0:01:38]} Qd2 {[%emt 0:01:35]} 31. R1e2 {[%emt 0:01:45]} Qc1+ {[%emt 0:00:34]} 32. Kh2 {[%emt 0:00:34]} Bd1 {[%emt 0:04:35]} 33. Qf1 {[%emt 0:04:31]} Qb1 {[%emt 0:05:57]} 34. f4 {[%emt 0:01:09]} gxf4 {[%emt 0:01:25]} 35. Qxf4 {[%emt 0:00:07]} Qg6 {[%emt 0:01:06]} 36. Rf2 {[%emt 0:00:39]} Re7 {[%emt 0:01:33]} 37. Bd5 {[%emt 0:01:33]} Rf8 {[%emt 0:00:42]} 38. Re1 {[%emt 0:00:47]} Ba4 {[%emt 0:00:05]} 39. h4 {[%emt 0:01:05]} h6 {[%emt 0:01:37]} 40. Qd2 {[%emt 0:00:00]} Qg7 {[%emt 0:00:00]} 41. e6 {[%emt 0:11:24]} fxe6 {[%emt 0:10:37]} 42. Bxe6+ {[%emt 0:00:24]} Kh8 {[%emt 0:00:17]} 43. g5 {[%emt 0:03:27]} Rxf2+ {[%emt 0:03:39]} 44. Qxf2 {[%emt 0:00:04]} Bc6 {[%emt 0:03:03]} 45. Re3 {[%emt 0:09:32]} Re8 {[%emt 0:01:51]} 46. Qg3 {[%emt 0:02:54]} hxg5 {[%emt 0:01:20]} 47. Re5 {[%emt 0:02:03]} Qh7 {[%emt 0:02:02]} 48. Qxg5 {[%emt 0:06:27]} Qg7 {[%emt 0:06:15]} 49. Qh5+ {[%emt 0:01:54]} Qh7 {[%emt 0:00:05]} 50. Qg4 {[%emt 0:00:57]} Qc2+ {[%emt 0:00:30]} 51. Re2 {[%emt 0:01:02]} Qh7 {[%emt 0:00:57]} 52. Rf2 {[%emt 0:01:14]} Qg7 {[%emt 0:01:21]} 53. Qh5+ {[%emt 0:01:42]} Qh7 {[%emt 0:00:07]} 54. Qe5+ {[%emt 0:01:52]} Qg7 {[%emt 0:00:05]} 55. Qh5+ {[%emt 0:00:04]} Qh7 {[%emt 0:00:07]} 56. Qxh7+ {[%emt 0:00:35]} Kxh7 {[%emt 0:00:08]} 57. Bd5 {[%emt 0:00:14]} Ba4 {[%emt 0:03:15]} 58. Rf7+ {[%emt 0:00:37]} Kh6 {[%emt 0:00:59]} 59. Rxa7 {[%emt 0:00:09]} Re2+ {[%emt 0:00:38]} 60. Kg3 {[%emt 0:00:11]} Be8 {[%emt 0:01:39]} 61. Ra6 {[%emt 0:00:45]} Rb2 {[%emt 0:00:08]} 62. a4 {[%emt 0:00:21]} Kg7 {[%emt 0:01:21]} 63. a5 {[%emt 0:00:27]} bxa5 {[%emt 0:00:42]} 64. Rxa5 {[%emt 0:00:05]} Rb3 {[%emt 0:00:14]} 65. Rxc5 {[%emt 0:00:52]} Rxc3+ {[%emt 0:00:03]} 66. Kf4 {[%emt 0:00:43]} Rh3 {[%emt 0:01:28]} 67. Rc8 {[%emt 0:00:20]} Ba4 {[%emt 0:00:26]} 68. Rc7+ {[%emt 0:01:07]} Kh6 {[%emt 0:01:01]} 69. Kg4 {[%emt 0:00:56]} Re3 {[%emt 0:00:52]} 70. Bf3 {[%emt 0:00:39]} Re8 {[%emt 0:00:34]} 71. Ra7 {[%emt 0:00:52]} Rg8+ {[%emt 0:00:48]} 72. Kh3 {[%emt 0:00:40]} Bc2 {[%emt 0:00:20]} 73. Ra6+ {[%emt 0:00:14]} Kh7 {[%emt 0:00:19]} 74. c5 {[%emt 0:00:30]} Bf5+ {[%emt 0:00:22]} 75. Kh2 {[%emt 0:00:04]} Rg7 {[%emt 0:01:11]} 76. Rf6 {[%emt 0:00:17]} Bc2 {[%emt 0:00:14]} 77. c6 {[%emt 0:00:28]} Rc7 {[%emt 0:00:24]} 78. Rd6 {[%emt 0:00:32]} Ba4 {[%emt 0:00:10]} 79. h5 {[%emt 0:00:18]} Rg7 {[%emt 0:01:36]} 80. Be4+ {[%emt 0:00:12]} Kg8 {[%emt 0:01:10]} 81. Rd8+ {[%emt 0:00:08]} Kf7 {[%emt 0:00:04]} 82. c7 {[%emt 0:00:05]} 1-0

[Event "EYCC Girls-U16 2019"]
[Site "Bratislava"]
[Date "2019.08.10"]
[Round "9.7"]
[White "Czarnecka, Lidia"]
[Black "Laurincova, Kristyna"]
[Result "1/2-1/2"]
[ECO "B74"]
[WhiteElo "1731"]
[BlackElo "1981"]
[Annotator "NA"]
[PlyCount "162"]
[EventDate "2019.08.02"]
[EventType "swiss"]
[EventCountry "SVK"]
[SourceTitle "playchess.com"]
[Source "ChessBase"]
[SourceQuality "1"]
[TimeControl "40/5400+30:1800+30"]

1. e4 {[%emt 0:00:00]} c5 {[%emt 0:00:00]} 2. Nf3 {[%emt 0:01:11]} d6 {[%emt 0:01:42]} 3. d4 {[%emt 0:00:37]} cxd4 {[%emt 0:00:05]} 4. Nxd4 {[%emt 0:00:08]} Nf6 {[%emt 0:00:17]} 5. Nc3 {[%emt 0:00:11]} g6 {[%emt 0:00:21]} 6. Be3 {[%emt 0:00:47]} Bg7 {[%emt 0:00:08]} 7. Be2 {[%emt 0:01:50]} O-O {[%emt 0:00:09]} 8. O-O {[%emt 0:00:10]} Nc6 {[%emt 0:04:07]} 9. Nb3 {[%emt 0:00:24]} Be6 {[%emt 0:02:39]} 10. f4 {[%emt 0:00:30]} Qc8 {[%emt 0:15:22]} 11. h3 {[%emt 0:01:33]} Rd8 {[%emt 0:01:36]} 12. Bf3 {[%emt 0:02:09]} Bc4 {[%emt 0:05:40]} 13. Re1 {[%emt 0:01:53]} d5 {[%emt 0:15:29]} 14. exd5 {[%emt 0:12:20]} Nb4 {[%emt 0:00:43]} 15. Qc1 {[%emt 0:04:20]} Nfxd5 {[%emt 0:05:15]} 16. Bxd5 {[%emt 0:04:53]} Nxd5 {[%emt 0:04:52]} 17. Nxd5 {[%emt 0:02:02]} Bxd5 {[%emt 0:05:31]} 18. c3 {[%emt 0:00:51]} Qc6 {[%emt 0:03:34]} 19. Qc2 {[%emt 0:00:47]} b6 {[%emt 0:02:45]} 20. Qf2 {[%emt 0:02:55]} Rd7 {[%emt 0:02:57]} 21. Nd4 {[%emt 0:01:17]} Qb7 {[%emt 0:00:18]} 22. Red1 {[%emt 0:05:43]} Rad8 {[%emt 0:01:38]} 23. Rd2 {[%emt 0:03:34]} Qc7 {[%emt 0:08:49]} 24. a3 {[%emt 0:01:42]} e5 {[%emt 0:05:36]} 25. Ne2 {[%emt 0:02:33]} Bb3 {[%emt 0:02:21]} 26. Rxd7 {[%emt 0:00:56]} Rxd7 {[%emt 0:00:34]} 27. Re1 {[%emt 0:01:29]} Qd8 {[%emt 0:06:36]} 28. Ng3 {[%emt 0:08:07]} f5 {[%emt 0:03:36]} 29. Nf1 {[%emt 0:01:53]} e4 {[%emt 0:00:36]} 30. Ng3 {[%emt 0:00:29]} Bc4 {[%emt 0:00:43]} 31. Ne2 {[%emt 0:00:30]} Bxe2 {[%emt 0:00:14]} 32. Rxe2 {[%emt 0:01:13]} Rd1+ {[%emt 0:00:37]} 33. Kh2 {[%emt 0:00:23]} Rd3 {[%emt 0:00:10]} 34. Rd2 {[%emt 0:01:33]} Kf7 {[%emt 0:00:40]} 35. Kg1 {[%emt 0:02:57]} Ke6 {[%emt 0:00:16]} 36. Qe1 {[%emt 0:09:22]} Qd5 {[%emt 0:00:48]} 37. Kf2 {[%emt 0:04:12]} Bf6 {[%emt 0:00:01]} 38. Qe2 {[%emt 0:02:39]} Kd6 {[%emt 0:01:13]} 39. Ke1 {[%emt 0:01:19]} Bh4+ {[%emt 0:00:55]} 40. Kd1 {[%emt 0:00:00]} Rxd2+ {[%emt 0:00:00]} 41. Qxd2 {[%emt 0:02:35]} Qxd2+ {[%emt 0:01:49]} 42. Kxd2 {[%emt 0:01:25]} Bg3 {[%emt 0:02:32]} 43. c4 {[%emt 0:05:11]} h6 {[%emt 0:00:43]} 44. b4 {[%emt 0:02:29]} Kc6 {[%emt 0:02:51]} 45. Ke2 {[%emt 0:01:24]} Bh4 {[%emt 0:03:53]} 46. Bd4 {[%emt 0:01:54]} Be7 {[%emt 0:05:16]} 47. Ke3 {[%emt 0:01:58]} h5 {[%emt 0:01:08]} 48. Be5 {[%emt 0:02:34]} a5 {[%emt 0:01:03]} 49. Bc3 {[%emt 0:00:11]} axb4 {[%emt 0:00:41]} 50. axb4 {[%emt 0:00:07]} h4 {[%emt 0:00:10]} 51. Ke2 {[%emt 0:01:18]} Bd6 {[%emt 0:01:01]} 52. Ke3 {[%emt 0:00:19]} Bf8 {[%emt 0:00:13]} 53. Be1 {[%emt 0:01:49]} Be7 {[%emt 0:01:29]} 54. Bc3 {[%emt 0:00:32]} Bf8 {[%emt 0:04:58]} 55. Be1 {[%emt 0:02:56]} Be7 {[%emt 0:01:55]} 56. Bc3 {[%emt 0:00:09]} Kd7 {[%emt 0:00:35]} 57. Ke2 {[%emt 0:01:32]} Ke6 {[%emt 0:02:34]} 58. Ke3 {[%emt 0:01:44]} g5 {[%emt 0:01:58]} 59. Be1 {[%emt 0:00:49]} Kf6 {[%emt 0:01:27]} 60. Bc3+ {[%emt 0:01:13]} Kg6 {[%emt 0:00:31]} 61. Be1 {[%emt 0:01:03]} Bd6 {[%emt 0:00:44]} 62. fxg5 {[%emt 0:01:16]} Kxg5 {[%emt 0:00:07]} 63. Bc3 {[%emt 0:00:38]} Be7 {[%emt 0:02:07]} 64. Bd2 {[%emt 0:02:07]} Kf6 {[%emt 0:00:01]} 65. Bc3+ {[%emt 0:01:19]} Ke6 {[%emt 0:00:01]} 66. Kf4 {[%emt 0:03:12]} Bd6+ {[%emt 0:01:49]} 67. Ke3 {[%emt 0:00:21]} Be5 {[%emt 0:00:50]} 68. Be1 {[%emt 0:01:33]} Bf6 {[%emt 0:00:12]} 69. Kf4 {[%emt 0:00:25]} Bd8 {[%emt 0:01:16]} 70. Bc3 {[%emt 0:01:19]} Bc7+ {[%emt 0:00:41]} 71. Ke3 {[%emt 0:00:12]} Kf7 {[%emt 0:00:23]} 72. Bd4 {[%emt 0:00:56]} Kg6 {[%emt 0:00:33]} 73. Bc3 {[%emt 0:01:39]} Kg5 {[%emt 0:00:09]} 74. Bd4 {[%emt 0:02:23]} Bf4+ {[%emt 0:01:28]} 75. Ke2 {[%emt 0:00:23]} Bc7 {[%emt 0:00:05]} 76. Ke3 {[%emt 0:00:36]} Bf4+ {[%emt 0:00:34]} 77. Ke2 {[%emt 0:00:05]} Bd6 {[%emt 0:00:56]} 78. Bxb6 {[%emt 0:03:43]} Bxb4 {[%emt 0:00:01]} 79. Bd8+ {[%emt 0:00:13]} Kh5 {[%emt 0:01:05]} 80. Bb6 {[%emt 0:00:16]} Kg6 {[%emt 0:00:26]} 81. Bd8 {[%emt 0:00:05]} Kh5 {[%emt 0:00:25]} 1/2-1/2

[Event "EYCC Girls-U16 2019"]
[Site "Bratislava"]
[Date "2019.08.10"]
[Round "9.8"]
[White "Vanduyfhuys, Daria"]
[Black "Adamczyk, Zuzanna"]
[Result "1-0"]
[ECO "E16"]
[WhiteElo "2114"]
[BlackElo "1900"]
[Annotator "NA"]
[PlyCount "97"]
[EventDate "2019.08.02"]
[EventType "swiss"]
[EventCountry "SVK"]
[SourceTitle "playchess.com"]
[Source "ChessBase"]
[SourceQuality "1"]
[TimeControl "40/5400+30:1800+30"]

1. d4 {[%emt 0:00:00]} Nf6 {[%emt 0:00:00]} 2. c4 {[%emt 0:00:00]} e6 {[%emt 0:00:00]} 3. Nf3 {[%emt 0:00:00]} b6 {[%emt 0:00:03]} 4. g3 {[%emt 0:00:00]} Bb7 {[%emt 0:01:06]} 5. Bg2 {[%emt 0:00:05]} Bb4+ {[%emt 0:01:37]} 6. Bd2 {[%emt 0:00:09]} Bxd2+ {[%emt 0:00:30]} 7. Qxd2 {[%emt 0:00:09]} O-O {[%emt 0:01:32]} 8. O-O {[%emt 0:00:07]} d6 {[%emt 0:07:04]} 9. Nc3 {[%emt 0:00:35]} Ne4 {[%emt 0:05:52]} 10. Nxe4 {[%emt 0:04:19]} Bxe4 {[%emt 0:00:18]} 11. Ne1 {[%emt 0:00:04]} Bxg2 {[%emt 0:02:33]} 12. Nxg2 {[%emt 0:00:05]} d5 {[%emt 0:15:52]} 13. cxd5 {[%emt 0:04:12]} Qxd5 {[%emt 0:02:41]} 14. Ne3 {[%emt 0:06:03]} Qd7 {[%emt 0:03:38]} 15. Rfd1 {[%emt 0:00:33]} c6 {[%emt 0:01:40]} 16. Rac1 {[%emt 0:00:54]} Na6 {[%emt 0:02:09]} 17. Qc3 {[%emt 0:08:38]} Rac8 {[%emt 0:01:46]} 18. Qa3 {[%emt 0:00:07]} Nb8 {[%emt 0:01:46]} 19. Nc4 {[%emt 0:03:27]} Rfd8 {[%emt 0:04:26]} 20. Ne5 {[%emt 0:10:04]} Qb7 {[%emt 0:04:27]} 21. e3 {[%emt 0:02:52]} Rc7 {[%emt 0:03:54]} 22. b4 {[%emt 0:16:11]} Qc8 {[%emt 0:17:23]} 23. Rc3 {[%emt 0:06:05]} Nd7 {[%emt 0:04:30]} 24. Nxd7 {[%emt 0:00:52]} Qxd7 {[%emt 0:01:56]} 25. Rdc1 {[%emt 0:00:12]} Rdc8 {[%emt 0:01:01]} 26. Qb3 {[%emt 0:02:32]} h6 {[%emt 0:02:56]} 27. Qc2 {[%emt 0:00:25]} Qd6 {[%emt 0:05:34]} 28. Rc4 {[%emt 0:01:54]} Qe7 {[%emt 0:02:10]} 29. a4 {[%emt 0:08:20]} Qd6 {[%emt 0:00:24]} 30. a5 {[%emt 0:05:47]} Qd5 {[%emt 0:02:30]} 31. Qc3 {[%emt 0:02:31]} Qb5 {[%emt 0:00:45]} 32. e4 {[%emt 0:05:22]} Kf8 {[%emt 0:01:53]} 33. Kg2 {[%emt 0:03:43]} Kg8 {[%emt 0:00:18]} 34. h4 {[%emt 0:05:53]} Kf8 {[%emt 0:01:14]} 35. g4 {[%emt 0:02:05]} Kg8 {[%emt 0:00:51]} 36. Rc2 {[%emt 0:02:11]} g6 {[%emt 0:00:31]} 37. axb6 {[%emt 0:00:56]} axb6 {[%emt 0:00:07]} 38. Qe3 {[%emt 0:00:52]} Kh7 {[%emt 0:00:58]} 39. Qf4 {[%emt 0:00:18]} f5 {[%emt 0:00:34]} 40. Qd6 {[%emt 0:00:00]} fxe4 {[%emt 0:00:00]} 41. Qxe6 {[%emt 0:01:21]} Qa4 {[%emt 0:11:08]} 42. Qxe4 {[%emt 0:01:12]} b5 {[%emt 0:10:15]} 43. Rc5 {[%emt 0:04:44]} Qxb4 {[%emt 0:03:30]} 44. h5 {[%emt 0:00:06]} Rg8 {[%emt 0:00:43]} 45. Rxc6 {[%emt 0:00:29]} Rcg7 {[%emt 0:03:20]} 46. Rxg6 {[%emt 0:00:23]} Rxg6 {[%emt 0:01:01]} 47. Rc7+ {[%emt 0:01:31]} Kh8 {[%emt 0:00:34]} 48. hxg6 {[%emt 0:00:05]} Rd8 {[%emt 0:01:33]} 49. Qe5+ {[%emt 0:00:23]} 1-0

[Event "EYCC Girls-U16 2019"]
[Site "Bratislava"]
[Date "2019.08.10"]
[Round "9.9"]
[White "Kuhar, Larisa"]
[Black "Ciolacu, Alessia-Mihaela"]
[Result "1/2-1/2"]
[ECO "C44"]
[WhiteElo "1894"]
[BlackElo "2199"]
[Annotator "NA"]
[PlyCount "94"]
[EventDate "2019.08.02"]
[EventType "swiss"]
[EventCountry "SVK"]
[SourceTitle "playchess.com"]
[Source "ChessBase"]
[SourceQuality "1"]
[TimeControl "40/5400+30:1800+30"]

1. e4 {[%emt 0:00:00]} e5 {[%emt 0:00:00]} 2. Nf3 {[%emt 0:00:00]} Nc6 {[%emt 0:00:00]} 3. d4 {[%emt 0:00:04]} exd4 {[%emt 0:00:00]} 4. Nxd4 {[%emt 0:00:08]} Nf6 {[%emt 0:00:01]} 5. Nxc6 {[%emt 0:00:29]} bxc6 {[%emt 0:00:10]} 6. Bd3 {[%emt 0:00:16]} Bb4+ {[%emt 0:03:41]} 7. c3 {[%emt 0:04:28]} Bc5 {[%emt 0:04:35]} 8. O-O {[%emt 0:05:58]} d6 {[%emt 0:01:05]} 9. h3 {[%emt 0:11:34]} Qe7 {[%emt 0:07:25]} 10. Nd2 {[%emt 0:06:50]} O-O {[%emt 0:02:41]} 11. Nb3 {[%emt 0:17:09]} Bb6 {[%emt 0:22:42]} 12. Re1 {[%emt 0:00:33]} Qe5 {[%emt 0:04:30]} 13. Qf3 {[%emt 0:04:25]} Bd7 {[%emt 0:08:56]} 14. Bf4 {[%emt 0:01:26]} Qh5 {[%emt 0:02:44]} 15. Qg3 {[%emt 0:07:07]} Qg6 {[%emt 0:02:34]} 16. Qxg6 {[%emt 0:07:44]} hxg6 {[%emt 0:00:13]} 17. Nd4 {[%emt 0:01:50]} Rfe8 {[%emt 0:06:08]} 18. Rad1 {[%emt 0:10:30]} c5 {[%emt 0:04:52]} 19. Nf3 {[%emt 0:02:37]} Bc6 {[%emt 0:02:15]} 20. e5 {[%emt 0:02:04]} Bxf3 {[%emt 0:04:20]} 21. gxf3 {[%emt 0:00:14]} dxe5 {[%emt 0:02:14]} 22. Bxe5 {[%emt 0:00:47]} Rad8 {[%emt 0:00:16]} 23. f4 {[%emt 0:04:36]} Nd7 {[%emt 0:10:21]} 24. c4 {[%emt 0:07:14]} Nxe5 {[%emt 0:03:27]} 25. fxe5 {[%emt 0:00:10]} Rd4 {[%emt 0:00:19]} 26. b3 {[%emt 0:04:06]} Ba5 {[%emt 0:00:41]} 27. Re3 {[%emt 0:00:31]} Red8 {[%emt 0:00:24]} 28. Kf1 {[%emt 0:00:23]} Bc3 {[%emt 0:00:45]} 29. Ke2 {[%emt 0:00:18]} Rf4 {[%emt 0:00:21]} 30. Re4 {[%emt 0:00:53]} Rxe4+ {[%emt 0:01:08]} 31. Bxe4 {[%emt 0:00:01]} Rxd1 {[%emt 0:00:20]} 32. Kxd1 {[%emt 0:00:01]} Bxe5 {[%emt 0:00:10]} 33. Ke2 {[%emt 0:00:40]} Kf8 {[%emt 0:00:29]} 34. Bd5 {[%emt 0:00:43]} f5 {[%emt 0:01:50]} 35. Ke3 {[%emt 0:01:00]} g5 {[%emt 0:00:31]} 36. Be6 {[%emt 0:00:32]} g6 {[%emt 0:00:12]} 37. Bd5 {[%emt 0:00:27]} Ke7 {[%emt 0:01:16]} 38. Ke2 {[%emt 0:00:20]} Kf6 {[%emt 0:00:27]} 39. Kf3 {[%emt 0:00:33]} Bf4 {[%emt 0:00:35]} 40. Ke2 {[%emt 0:00:00]} Ke5 {[%emt 0:00:00]} 41. Kf3 {[%emt 0:06:03]} Kf6 {[%emt 0:05:17]} 42. Bc6 {[%emt 0:01:43]} Be5 {[%emt 0:01:32]} 43. Bd5 {[%emt 0:02:12]} Bd4 {[%emt 0:00:07]} 44. Bc6 {[%emt 0:00:51]} g4+ {[%emt 0:01:33]} 45. hxg4 {[%emt 0:01:47]} fxg4+ {[%emt 0:00:01]} 46. Kxg4 {[%emt 0:01:21]} Bxf2 {[%emt 0:00:16]} 47. Bd7 {[%emt 0:00:49]} Ke7 {[%emt 0:01:51]} 1/2-1/2

[Event "EYCC Girls-U16 2019"]
[Site "Bratislava"]
[Date "2019.08.10"]
[Round "9.10"]
[White "Srdanovic, Jovana"]
[Black "Guillo Longares, Cecilia"]
[Result "0-1"]
[ECO "E77"]
[WhiteElo "1975"]
[BlackElo "1916"]
[Annotator "NA"]
[PlyCount "96"]
[EventDate "2019.08.02"]
[EventType "swiss"]
[EventCountry "SVK"]
[SourceTitle "playchess.com"]
[Source "ChessBase"]
[SourceQuality "1"]
[TimeControl "40/5400+30:1800+30"]

1. d4 {[%emt 0:00:00]} Nf6 {[%emt 0:00:00]} 2. c4 {[%emt 0:00:00]} c5 {[%emt 0:00:00]} 3. d5 {[%emt 0:00:00]} g6 {[%emt 0:00:00]} 4. Nc3 {[%emt 0:00:00]} Bg7 {[%emt 0:00:00]} 5. e4 {[%emt 0:01:01]} d6 {[%emt 0:00:00]} 6. f4 {[%emt 0:01:01]} O-O {[%emt 0:00:07]} 7. Nf3 {[%emt 0:00:42]} e6 {[%emt 0:00:50]} 8. Bd3 {[%emt 0:03:33]} exd5 {[%emt 0:00:33]} 9. cxd5 {[%emt 0:00:10]} a6 {[%emt 0:02:32]} 10. O-O {[%emt 0:00:27]} b5 {[%emt 0:00:37]} 11. a3 {[%emt 0:00:22]} Bg4 {[%emt 0:01:29]} 12. h3 {[%emt 0:01:15]} Bxf3 {[%emt 0:00:11]} 13. Qxf3 {[%emt 0:00:08]} Nbd7 {[%emt 0:00:56]} 14. Kh1 {[%emt 0:01:12]} c4 {[%emt 0:01:09]} 15. Bc2 {[%emt 0:00:27]} Nc5 {[%emt 0:00:19]} 16. Be3 {[%emt 0:05:55]} Nfd7 {[%emt 0:01:14]} 17. Qf2 {[%emt 0:01:12]} Rb8 {[%emt 0:06:46]} 18. Bd4 {[%emt 0:01:38]} a5 {[%emt 0:01:51]} 19. Rae1 {[%emt 0:03:17]} Bxd4 {[%emt 0:08:00]} 20. Qxd4 {[%emt 0:01:04]} f6 {[%emt 0:00:35]} 21. Ne2 {[%emt 0:02:07]} Qe7 {[%emt 0:02:38]} 22. Ng1 {[%emt 0:03:51]} Rbe8 {[%emt 0:02:59]} 23. Nf3 {[%emt 0:01:54]} Qd8 {[%emt 0:02:31]} 24. Qc3 {[%emt 0:01:54]} Qb6 {[%emt 0:07:35]} 25. Nd4 {[%emt 0:01:58]} a4 {[%emt 0:01:28]} 26. h4 {[%emt 0:04:26]} Nb3 {[%emt 0:04:28]} 27. Ne6 {[%emt 0:01:47]} Rf7 {[%emt 0:01:33]} 28. f5 {[%emt 0:02:02]} Ne5 {[%emt 0:01:46]} 29. Rf4 {[%emt 0:03:40]} Nc5 {[%emt 0:03:17]} 30. Ref1 {[%emt 0:03:15]} gxf5 {[%emt 0:04:47]} 31. exf5 {[%emt 0:12:20]} Qb7 {[%emt 0:01:22]} 32. Rd4 {[%emt 0:01:49]} Kh8 {[%emt 0:01:07]} 33. Bd1 Rg8 {[%emt 0:02:07]} 34. Bh5 {[%emt 0:06:09]} Re7 {[%emt 0:01:35]} 35. Kh2 {[%emt 0:02:23]} Nxe6 {[%emt 0:10:30]} 36. fxe6 {[%emt 0:00:15]} Rxe6 {[%emt 0:00:17]} 37. Qh3 {[%emt 0:00:51]} Re7 {[%emt 0:01:00]} 38. Rxf6 {[%emt 0:00:44]} Reg7 {[%emt 0:01:01]} 39. Rd2 {[%emt 0:01:13]} Rg3 {[%emt 0:04:57]} 40. Qe6 {[%emt 0:00:00]} Qg7 {[%emt 0:00:00]} 41. Rff2 {[%emt 0:06:47]} Nd3 {[%emt 0:02:57]} 42. Qe4 {[%emt 0:03:07]} Nxf2 {[%emt 0:06:27]} 43. Rxf2 {[%emt 0:00:56]} Rb3 {[%emt 0:14:26]} 44. Rf7 {[%emt 0:04:53]} Qe5+ {[%emt 0:00:33]} 45. Qxe5+ {[%emt 0:00:32]} dxe5 {[%emt 0:00:06]} 46. Rf2 {[%emt 0:00:20]} Rd8 {[%emt 0:02:00]} 47. Bf3 {[%emt 0:00:36]} Re3 {[%emt 0:00:15]} 48. Kg3 {[%emt 0:01:26]} Rxd5 {[%emt 0:00:08]} 0-1

[Event "EYCC Girls-U16 2019"]
[Site "Bratislava"]
[Date "2019.08.10"]
[Round "9.11"]
[White "Kvendseth, Thyra"]
[Black "Yedigaryan, Asya"]
[Result "1-0"]
[ECO "A46"]
[WhiteElo "1977"]
[BlackElo "1583"]
[Annotator "NA"]
[PlyCount "47"]
[EventDate "2019.08.02"]
[EventType "swiss"]
[EventCountry "SVK"]
[SourceTitle "playchess.com"]
[Source "ChessBase"]
[SourceQuality "1"]
[TimeControl "40/5400+30:1800+30"]

1. d4 {[%emt 0:00:00]} Nf6 {[%emt 0:00:00]} 2. Nf3 {[%emt 0:00:00]} c5 {[%emt 0:00:00]} 3. g3 {[%emt 0:00:00]} b6 {[%emt 0:00:34]} 4. Bg2 {[%emt 0:00:46]} Bb7 {[%emt 0:00:04]} 5. c3 {[%emt 0:01:06]} g6 {[%emt 0:04:18]} 6. O-O {[%emt 0:00:59]} Bg7 {[%emt 0:00:15]} 7. Qb3 {[%emt 0:06:04]} Bd5 {[%emt 0:11:25]} 8. c4 {[%emt 0:00:41]} Bc6 {[%emt 0:00:04]} 9. d5 {[%emt 0:03:07]} Bb7 {[%emt 0:00:07]} 10. Nc3 {[%emt 0:00:08]} d6 {[%emt 0:00:40]} 11. e4 {[%emt 0:02:00]} Nbd7 {[%emt 0:00:12]} 12. Bd2 {[%emt 0:07:16]} O-O {[%emt 0:00:53]} 13. Rae1 {[%emt 0:05:37]} h6 {[%emt 0:06:02]} 14. Nh4 {[%emt 0:03:54]} Kh7 {[%emt 0:09:16]} 15. f4 {[%emt 0:08:23]} Ne8 {[%emt 0:09:41]} 16. Qc2 {[%emt 0:06:40]} Bd4+ {[%emt 0:05:58]} 17. Kh1 {[%emt 0:00:07]} Bf6 {[%emt 0:04:38]} 18. Nf3 {[%emt 0:05:16]} Qc7 {[%emt 0:05:44]} 19. e5 {[%emt 0:07:46]} Bg7 {[%emt 0:09:43]} 20. e6 {[%emt 0:03:03]} fxe6 {[%emt 0:04:06]} 21. Rxe6 {[%emt 0:01:41]} Rf6 {[%emt 0:01:29]} 22. Rxe7 {[%emt 0:03:09]} Qd8 {[%emt 0:01:29]} 23. Rfe1 {[%emt 0:01:12]} Nc7 {[%emt 0:00:12]} 24. Ne4 {[%emt 0:02:33]} 1-0